fUSD/lending_fUSD_20250407
["ID","MTS","AMOUNT","RATE_DAILY","PERIOD"]
[357290691,1743984079507,165.6138,0.000273,30]
[357290692,1743984126351,999.99999999,0.00039448,120]
[357290694,1743984231477,500.0,0.00039448,120]
[357290695,1743984399049,500.0,0.00039448,120]
[357290696,1743984415904,500.0,0.00039448,120]
[357290697,1743984429983,500.0,0.00039448,120]
[357290698,1743984447178,500.0,0.00039448,120]
[357290700,1743984470361,500.0,0.00039448,120]
[357290726,1743984632552,-300.0,0.00019799,2]
[357290727,1743984632562,-171.282,0.000198,2]
[357290730,1743984632630,-97748.67353042,0.000198,2]
[357290731,1743984632649,-632.21856547,0.000198,2]
[357290733,1743984632699,-4089.68411811,0.000198,2]
[357290734,1743984632709,-191.72879419,0.00020789,4]
[357290736,1743984632718,-202.59119274,0.00020889,2]
[357290738,1743984632728,-25474.0605,0.0002089,2]
[357290739,1743984632737,-1136.9363,0.0002089,2]
[357290741,1743984632747,-420.0,0.00021563,2]
[357290743,1743984632756,-250.0,0.0002178,2]
[357290744,1743984632769,-250.0,0.00021889,2]
[357290746,1743984632778,-250.0,0.00022978,2]
[357290748,1743984632787,-587.0,0.00023485,2]
[357290749,1743984632796,-367.0,0.00025578,2]
[357290751,1743984632806,-197.3016,0.000273,2]
[357290753,1743984632815,-226.6639,0.000273,2]
[357290754,1743984632825,-268.6287,0.000273,2]
[357290755,1743984632834,-3572.9487,0.000273,2]
[357290756,1743984632845,-339.27688042,0.000274,2]
[357290757,1743984632856,-499.99,0.00028203,2]
[357290758,1743984632866,-9687.64504127,0.00028543,2]
[357290759,1743984632877,-1189.193,0.00032337,32]
[357290760,1743984632886,-162.67,0.00035,2]
[357290761,1743984632899,-713.65,0.000388,31]
[357290762,1743984632908,-713.65,0.000388,31]
[357290763,1743984632917,-713.65,0.000388,31]
[357290764,1743984632926,-713.65,0.000388,31]
[357290765,1743984632935,-713.65,0.000388,31]
[357290766,1743984632945,-713.65,0.000388,31]
[357290767,1743984632955,-713.65,0.000388,31]
[357290768,1743984632964,-713.65,0.000388,31]
[357290769,1743984632974,-713.65,0.000388,31]
[357290770,1743984632983,-713.65,0.000388,31]
[357290771,1743984632993,-713.65,0.000388,31]
[357290772,1743984633002,-713.65,0.000388,31]
[357290773,1743984633011,-1063.91076941,0.0004173,2]
[357290774,1743984633022,-364.59,0.00042,120]
[357290775,1743984633031,-1285.0,0.00042566,2]
[357290776,1743984633041,-773.342,0.00042566,2]
[357290777,1743984633051,-574.0,0.00042566,2]
[357290778,1743984633061,-790.0,0.00042566,2]
[357290779,1743984633070,-908.0,0.00042566,2]
[357290780,1743984633080,-4139.0,0.00042566,2]
[357290781,1743984633089,-544.0,0.00042566,2]
[357290782,1743984633099,-1734.24,0.00042566,2]
[357290783,1743984633109,-151.0,0.00042566,2]
[357290784,1743984633119,-851.0,0.00042566,2]
[357290785,1743984633129,-250.0,0.00042835,2]
[357290786,1743984633142,-1000.0,0.00043468,2]
[357290787,1743984633152,-200.0,0.00043825,7]
[357290788,1743984633162,-408.07,0.00043845,120]
[357290789,1743984633172,-200.0,0.00044369,2]
[357290790,1743984633182,-535.94,0.00044816,2]
[357290791,1743984633192,-155.43,0.0004484,2]
[357290792,1743984633202,-155.43,0.00044859,2]
[357290793,1743984633212,-155.43,0.00044877,2]
[357290794,1743984633222,-155.43,0.00044896,2]
[357290795,1743984633233,-155.43,0.00044915,2]
[357290796,1743984633243,-155.43,0.00044933,2]
[357290797,1743984633253,-155.43,0.00044952,2]
[357290798,1743984633262,-400.58527103,0.0004497,2]
[357290799,1743984633271,-155.43,0.00044971,2]
[357290800,1743984633280,-155.43,0.00044989,2]
[357290801,1743984633290,-151.0,0.00045,120]
[357290802,1743984633300,-151.0,0.00045,120]
[357290803,1743984633310,-155.43,0.00045008,2]
[357290804,1743984633319,-155.43,0.00045027,2]
[357290805,1743984633329,-155.43,0.00045045,2]
[357290806,1743984633338,-155.43,0.00045064,2]
[357290807,1743984633348,-496.86225196,0.00045347,120]
[357290808,1743984633357,-500.0,0.00045531,120]
[357290809,1743984633367,-574.0,0.00045566,2]
[357290810,1743984633378,-790.0,0.00045566,2]
[357290811,1743984633392,-908.0,0.00045566,2]
[357290812,1743984633402,-4139.0,0.00045566,2]
[357290813,1743984633414,-544.0,0.00045566,2]
[357290814,1743984633424,-151.0,0.00045566,2]
[357290815,1743984633434,-851.0,0.00045566,2]
[357290816,1743984633444,-2270.67,0.00045791,2]
[357290817,1743984633455,-151.7,0.00045909,2]
[357290818,1743984633465,-500.0,0.00046032,2]
[357290819,1743984633475,-500.0,0.00046053,120]
[357290820,1743984633485,-200.0,0.00046121,2]
[357290821,1743984633495,-23900.0,0.00046152,2]
[357290822,1743984633505,-2000.0,0.00046202,120]
[357290823,1743984633514,-500.0,0.00046535,120]
[357290824,1743984633523,-184.48,0.0004668,2]
[357290825,1743984633533,-695.4174,0.00046888,30]
[357290826,1743984633543,-500.0,0.00047045,2]
[357290827,1743984633553,-500.0,0.00047053,120]
[357290828,1743984633563,-535.94,0.00047079,2]
[357290829,1743984633573,-589.44772763,0.00047345,7]
[357290830,1743984633583,-198.33,0.00047359,120]
[357290831,1743984633593,-500.0,0.00047531,120]
[357290832,1743984633603,-151.7,0.00048027,2]
[357290833,1743984633613,-408.07,0.00048323,120]
[357290834,1743984633622,-2000.0,0.00048565,13]
[357290835,1743984633632,-935.0,0.00048565,13]
[357290836,1743984633646,-574.0,0.00048566,2]
[357290837,1743984633656,-790.0,0.00048566,2]
[357290838,1743984633666,-908.0,0.00048566,2]
[357290839,1743984633676,-1252.08,0.00048566,2]
[357290840,1743984633686,-544.0,0.00048566,2]
[357290841,1743984633695,-151.0,0.00048566,2]
[357290842,1743984633705,-851.0,0.00048566,2]
[357290843,1743984633715,-1000.0,0.000486,2]
[357290844,1743984633725,-2500.0,0.00048625,2]
[357290845,1743984633735,-36045.8581,0.000487,2]
[357290846,1743984633746,-264.27,0.00048725,2]
[357290847,1743984633756,-500.0,0.0004877,3]
[357290848,1743984633766,-500.0,0.0004877,3]
[357290849,1743984633776,-2594.27869113,0.000488,120]
[357290850,1743984633786,-3307.81853474,0.000488,120]
[357290851,1743984633796,-1000.0,0.00048902,2]
[357290852,1743984633806,-500.0,0.0004897,3]
[357290853,1743984633816,-500.0,0.0004897,3]
[357290854,1743984633826,-452.79,0.00049,20]
[357290855,1743984633836,-998.08894713,0.00049215,15]
[357290856,1743984633846,-500.0,0.00049215,2]
[357290857,1743984633855,-500.0,0.00049314,120]
[357290858,1743984633865,-500.0,0.00049314,120]
[357290859,1743984633875,-500.0,0.00049314,120]
[357290860,1743984633884,-500.0,0.00049314,120]
[357290861,1743984633900,-500.0,0.00049314,120]
[357290862,1743984633909,-500.0,0.00049314,120]
[357290863,1743984633920,-500.0,0.00049315,120]
[357290864,1743984633929,-500.0,0.00049315,120]
[357290865,1743984633939,-500.0,0.00049315,120]
[357290866,1743984633949,-500.0,0.00049315,120]
[357290867,1743984633959,-500.0,0.00049315,120]
[357290868,1743984633968,-500.0,0.00049315,120]
[357290869,1743984633977,-500.0,0.00049315,120]
[357290870,1743984633987,-500.0,0.00049315,120]
[357290871,1743984633997,-500.0,0.00049315,120]
[357290872,1743984634239,-500.0,0.00049315,120]
[357290873,1743984634249,-500.0,0.00049315,120]
[357290874,1743984634259,-500.0,0.00049315,120]
[357290875,1743984634269,-500.0,0.00049315,120]
[357290876,1743984634279,-500.0,0.00049315,120]
[357290877,1743984634289,-500.0,0.00049315,120]
[357290878,1743984634300,-500.0,0.00049315,120]
[357290879,1743984634310,-500.0,0.00049315,120]
[357290880,1743984634320,-500.0,0.00049315,120]
[357290881,1743984634330,-500.0,0.00049315,120]
[357290882,1743984634340,-500.0,0.00049315,120]
[357290883,1743984634350,-500.0,0.00049315,120]
[357290884,1743984634360,-500.0,0.00049315,120]
[357290885,1743984634370,-500.0,0.00049315,120]
[357290886,1743984634385,-500.0,0.00049315,120]
[357290887,1743984634398,-500.0,0.00049315,120]
[357290888,1743984634408,-500.0,0.00049315,120]
[357290889,1743984634418,-500.0,0.00049315,120]
[357290890,1743984634428,-500.0,0.00049315,120]
[357290891,1743984634438,-500.0,0.00049315,120]
[357290892,1743984634448,-500.0,0.00049315,120]
[357290893,1743984634458,-500.0,0.00049315,120]
[357290894,1743984634468,-500.0,0.00049315,120]
[357290895,1743984634478,-500.0,0.00049315,120]
[357290896,1743984634487,-500.0,0.00049315,120]
[357290897,1743984634497,-500.0,0.00049315,120]
[357290898,1743984634507,-500.0,0.00049315,120]
[357290899,1743984634516,-500.0,0.00049315,120]
[357290900,1743984634527,-500.0,0.00049315,120]
[357290901,1743984634537,-500.0,0.00049315,120]
[357290902,1743984634546,-500.0,0.00049315,120]
[357290903,1743984634555,-500.0,0.00049315,120]
[357290904,1743984634565,-605.68336974,0.00049315,120]
[357290905,1743984634574,-613.62885124,0.00049315,120]
[357290906,1743984634583,-613.62885124,0.00049315,120]
[357290907,1743984634593,-613.62885124,0.00049315,120]
[357290908,1743984634602,-613.62885124,0.00049315,120]
[357290909,1743984634611,-613.62885124,0.00049315,120]
[357290910,1743984634621,-613.62885124,0.00049315,120]
[357290911,1743984634630,-613.62885124,0.00049315,120]
[357290912,1743984634641,-613.62885124,0.00049315,120]
[357290913,1743984634650,-613.62885124,0.00049315,120]
[357290914,1743984634660,-613.62885124,0.00049315,120]
[357290915,1743984634669,-613.62885124,0.00049315,120]
[357290916,1743984634678,-613.62885124,0.00049315,120]
[357290917,1743984634688,-613.62885124,0.00049315,120]
[357290918,1743984634697,-613.62885124,0.00049315,120]
[357290919,1743984634707,-613.62885124,0.00049315,120]
[357290920,1743984634717,-613.62885124,0.00049315,120]
[357290921,1743984634726,-613.62885124,0.00049315,120]
[357290922,1743984634736,-613.62885124,0.00049315,120]
[357290923,1743984634745,-613.62885124,0.00049315,120]
[357290924,1743984634755,-613.62885124,0.00049315,120]
[357290925,1743984634764,-613.62885124,0.00049315,120]
[357290926,1743984634774,-613.62885124,0.00049315,120]
[357290927,1743984634784,-613.62885124,0.00049315,120]
[357290928,1743984634793,-613.62885124,0.00049315,120]
[357290929,1743984634803,-613.62885124,0.00049315,120]
[357290930,1743984634812,-610.3992257,0.00049315,120]
[357290931,1743984634821,-610.3992257,0.00049315,120]
[357290932,1743984634830,-610.3992257,0.00049315,120]
[357290933,1743984634839,-610.3992257,0.00049315,120]
[357290934,1743984634848,-610.3992257,0.00049315,120]
[357290935,1743984634858,-610.3992257,0.00049315,120]
[357290936,1743984634867,-610.3992257,0.00049315,120]
[357290937,1743984634877,-610.3992257,0.00049315,120]
[357290938,1743984634886,-610.3992257,0.00049315,120]
[357290939,1743984634897,-610.3992257,0.00049315,120]
[357290940,1743984634906,-610.3992257,0.00049315,120]
[357290941,1743984634915,-610.3992257,0.00049315,120]
[357290942,1743984634924,-610.3992257,0.00049315,120]
[357290943,1743984634934,-610.3992257,0.00049315,120]
[357290944,1743984634943,-610.3992257,0.00049315,120]
[357290945,1743984634952,-610.3992257,0.00049315,120]
[357290946,1743984634961,-610.3992257,0.00049315,120]
[357290947,1743984634971,-610.3992257,0.00049315,120]
[357290948,1743984634980,-610.39922577,0.00049315,120]
[357290949,1743984634990,-500.0,0.00049315,120]
[357290950,1743984634999,-500.0,0.00049315,120]
[357290951,1743984635009,-300.0,0.00049315,120]
[357290952,1743984635018,-500.0,0.00049315,120]
[357290953,1743984635027,-153.0,0.00049315,90]
[357290954,1743984635037,-535.94,0.00049343,2]
[357290955,1743984635047,-1981.5747105,0.0004946,4]
[357290956,1743984635056,-1247.0,0.000496,7]
[357290957,1743984635066,-200.0,0.00049671,120]
[357290958,1743984635075,-193.94311781,0.00049699,16]
[357290959,1743984635085,-998.08894711,0.00049824,15]
[357290960,1743984635094,-2000.0,0.000499,2]
[357290961,1743984635103,-1000.0,0.000499,2]
[357290962,1743984635113,-157.00615026,0.000499,120]
[357290963,1743984635122,-500.0,0.0005,120]
[357290964,1743984635132,-470.0,0.0005,120]
[357290965,1743984635142,-1448.0,0.0005,90]
[357290966,1743984635152,-778.0,0.0005,120]
[357290967,1743984635161,-155.39,0.00050141,120]
[357290968,1743984635171,-151.7,0.00050145,120]
[357290969,1743984635181,-998.08894711,0.00050433,15]
[357290970,1743984635190,-150.0,0.000509,120]
[357290971,1743984635199,-1023.4427378,0.00050913,23]
[357290972,1743984635208,-500.0,0.0005097,7]
[357290973,1743984635218,-13246.5163994,0.0005099,4]
[357290974,1743984635227,-150.0,0.0005099,2]
[357290975,1743984635237,-150.0,0.0005099,2]
[357290976,1743984635246,-234.820405,0.0005099,2]
[357290977,1743984635256,-415.68777509,0.0005099,2]
[357290978,1743984635265,-1054.23412263,0.0005099,2]
[357290979,1743984635274,-4026.8284956,0.00050995,2]
[357290980,1743984635284,-8505.24362371,0.00051,4]
[357290981,1743984635293,-500.0,0.00051,120]
[357290982,1743984635303,-1000.0,0.00051,30]
[357290983,1743984635312,-300.0,0.00051,120]
[357290984,1743984635322,-500.0,0.00051,120]
[357290985,1743984635331,-500.0,0.00051003,120]
[357290986,1743984635341,-529.0,0.00051003,120]
[357290987,1743984635350,-500.0,0.00051003,120]
[357290988,1743984635359,-500.0,0.00051003,120]
[357290989,1743984635369,-500.0,0.00051003,120]
[357290990,1743984635379,-13952.8857361,0.00051005,2]
[357290991,1743984635391,-1212.79261485,0.00051013,30]
[357290992,1743984635401,-13246.5163994,0.0005103,4]
[357290993,1743984635411,-8796.81802,0.0005104,2]
[357290994,1743984635420,-998.08894711,0.00051041,15]
[357290995,1743984635430,-500.0,0.00051271,120]
[357290996,1743984635439,-200.0,0.00051271,120]
[357290997,1743984635449,-373.0,0.000514,30]
[357290998,1743984635459,-757.0,0.000514,30]
[357290999,1743984635469,-701.0,0.000514,30]
[357291000,1743984635478,-574.0,0.00051566,120]
[357291001,1743984635488,-790.0,0.00051566,2]
[357291002,1743984635497,-908.0,0.00051566,120]
[357291003,1743984635507,-544.0,0.00051566,120]
[357291004,1743984635516,-151.0,0.00051566,120]
[357291005,1743984635525,-851.0,0.00051566,120]
[357291006,1743984635535,-535.94,0.00051607,2]
[357291007,1743984635544,-998.08894711,0.0005165,15]
[357291008,1743984635553,-400.0,0.000517,18]
[357291009,1743984635563,-1189.194,0.00051753,94]
[357291010,1743984635572,-800.0,0.000518,18]
[357291011,1743984635582,-1510691.46284293,0.00051899,9]
[357291012,1743984638058,-500.0,0.00049314,120]
[357291013,1743984638068,-500.0,0.00049314,120]
[357291015,1743984638078,-500.0,0.00049314,120]
[357291016,1743984638087,-500.0,0.00049314,120]
[357291017,1743984638096,-500.0,0.00049314,120]
[357291018,1743984638105,-500.0,0.00049314,120]
[357291019,1743984638114,-500.0,0.00049314,120]
[357291020,1743984638123,-283.2409646,0.00049314,120]
[357291021,1743984638132,-500.0,0.00049314,120]
[357291022,1743984638142,-545.81343705,0.00049314,120]
[357291023,1743984638152,-500.0,0.00049314,120]
[357291024,1743984638162,-500.0,0.00049314,120]
[357291025,1743984638172,-150.0,0.00050913,23]
[357291026,1743984638181,-272.23225324,0.00051899,120]
[357291027,1743984638190,-66063.53225802,0.00051899,61]
[357291028,1743984638206,-465.62736761,0.00051899,61]
[357291029,1743984638218,-1517.7696344,0.00051899,61]
[357291030,1743984638229,-298.55779327,0.00051899,61]
[357291031,1743984638261,-45606.11541131,0.00051899,61]
[357291032,1743984638270,-1156.72147788,0.00051899,9]
[357291033,1743984638281,-18609.17380999,0.00051899,9]
[357291034,1743984638293,-1072.35,0.00051899,9]
[357291035,1743984638304,-1030.0,0.00051899,9]
[357291198,1743984640436,-355.0,0.000197,2]
[357291199,1743984640449,-391.79005278,0.000197,2]
[357291200,1743984640461,-394.421,0.000197,2]
[357291201,1743984640473,-19347.52904722,0.000197,2]
[357291202,1743984640483,-151.0,0.00041332,2]
[357291203,1743984640492,-1119.0,0.00042566,2]
[357291204,1743984640502,-1119.0,0.00045566,2]
[357291205,1743984640511,-1119.0,0.00048566,2]
[357291206,1743984640521,-150.0,0.00051005,2]
[357291207,1743984640530,-553076.52926323,0.00051899,9]
[357291236,1743984643345,-150.0,0.00051271,120]
[357291237,1743984643355,-1119.0,0.00051566,120]
[357291238,1743984643364,-2476.46067861,0.00051899,9]
[357291239,1743984643448,-11666.93068321,0.00051899,9]
[357291240,1743984643555,-1731.54382436,0.00051899,9]
[357291272,1743984646123,-300.0,0.0005164,16]
[357291274,1743984646133,-150.0,0.00051753,94]
[357291276,1743984646142,-630190.46832113,0.00051899,9]
[357291281,1743984646225,-2918.58716055,0.00051899,9]
[357291282,1743984646236,-4131.7276,0.00051899,9]
[357291283,1743984646342,-399.58788103,0.00051899,9]
[357291284,1743984646354,-1345.47518476,0.00051899,9]
[357291285,1743984646365,-3160.07707994,0.00051899,9]
[357291286,1743984646379,-668.93696702,0.00051899,9]
[357291306,1743984822721,-200.3,0.00026849,2]
[357291307,1743984855994,-200.3,0.00032646,2]
[357291308,1743984856024,-1582.90603344,0.00032646,2]
[357291309,1743984865688,499.99999999,0.0003944,120]
[357291310,1743984928202,500.0,0.0003944,120]
[357291311,1743984951862,500.0,0.0003944,120]
[357291312,1743985121070,500.0,0.0003944,120]
[357291313,1743985535634,1306.56480202,0.00032,120]
[357291317,1743985580826,355.01,0.00032932,120]
[357291321,1743985720909,4716.33100195,0.00039453,60]
[357291331,1743985795516,-10479.92341975,0.00015,2]
[357291332,1743985795575,-9634.7327138,0.00015,2]
[357291333,1743985808916,-151.0,0.0001499,2]
[357291334,1743985827393,-50000.0,0.00015,2]
[357291335,1743985828598,-50000.0,0.00015,2]
[357291336,1743985829430,-50000.0,0.00015,2]
[357291337,1743985829650,-50000.0,0.00015,2]
[357291338,1743985830398,-50000.0,0.00015,2]
[357291339,1743985831161,-50000.0,0.00015,2]
[357291347,1743985831985,-50000.0,0.00015,2]
[357291352,1743985832183,-3066.05517546,0.00015,2]
[357291354,1743985832195,-701.24171303,0.00015,2]
[357291355,1743985832341,-1189.27015556,0.00015,2]
[357291356,1743985832448,-694.44682337,0.00015,2]
[357291357,1743985832460,-13967.53885831,0.00015,2]
[357291358,1743985832718,-50000.0,0.00015,2]
[357291395,1743985833462,-50000.0,0.00015,2]
[357291396,1743985834212,-50000.0,0.00015,2]
[357291397,1743985834970,-50000.0,0.00015,2]
[357291398,1743985835649,-50000.0,0.00015,2]
[357291399,1743985836376,-50000.0,0.00015,2]
[357291400,1743985837095,-50000.0,0.00015,2]
[357291401,1743985837796,-50000.0,0.00015,2]
[357291411,1743985838151,-798710.0,0.00015,2]
[357291412,1743985838166,-537.70455111,0.00015,2]
[357291413,1743985838177,-297.76034282,0.00015,2]
[357291414,1743985838260,-126204.90973164,0.00015,2]
[357291425,1743985838477,-50000.0,0.00015,2]
[357291496,1743985839165,-50000.0,0.00015,2]
[357291552,1743985839919,-50000.0,0.00015,2]
[357291556,1743985840503,-17003.33936357,0.00015,2]
[357291557,1743985840514,-666.87468935,0.000177,2]
[357291558,1743985840524,-2182.88676398,0.000178,2]
[357291559,1743985840534,-499.0444736,0.000179,2]
[357291560,1743985840544,-2182.88676395,0.00018033,2]
[357291561,1743985840555,-396.71245237,0.000181,2]
[357291562,1743985840564,-499.04447355,0.00018122,2]
[357291563,1743985840573,-2182.88676395,0.00018267,2]
[357291564,1743985840584,-499.04447355,0.00018344,2]
[357291565,1743985840594,-6600.28203792,0.000185,2]
[357291566,1743985840603,-2182.88676395,0.000185,2]
[357291567,1743985840613,-499.04447355,0.00018567,2]
[357291568,1743985840623,-2182.88676395,0.00018733,2]
[357291569,1743985840633,-499.04447355,0.00018789,2]
[357291570,1743985840642,-2182.88676395,0.00018967,2]
[357291571,1743985840652,-250.0,0.00019,2]
[357291572,1743985840663,-499.04447355,0.00019011,2]
[357291573,1743985840674,-2182.88676395,0.000192,2]
[357291574,1743985840683,-499.04447355,0.00019233,2]
[357291575,1743985840693,-300.0,0.000194,7]
[357291576,1743985840703,-2182.88676395,0.00019433,2]
[357291577,1743985840718,-499.04447355,0.00019456,2]
[357291579,1743985840727,-600.0,0.000195,7]
[357291580,1743985840737,-1000.0,0.000196,7]
[357291581,1743985840746,-2182.88676395,0.00019667,2]
[357291582,1743985840756,-499.04447355,0.00019678,2]
[357291583,1743985840767,-1300.0,0.000197,7]
[357291585,1743985840779,-1700.0,0.000198,7]
[357291586,1743985840788,-300.0,0.000199,7]
[357291587,1743985840798,-177.95273777,0.000199,3]
[357291588,1743985840808,-8409.7636113,0.000199,2]
[357291589,1743985840818,-499.04447355,0.000199,2]
[357291590,1743985840828,-502.20816352,0.00019973,2]
[357291591,1743985840837,-15548.60685369,0.00019999,2]
[357291592,1743985840846,-477342.36374261,0.0002,2]
[357291593,1743985840933,-0.01040013,0.0002,2]
[357291594,1743985840949,-2500.0,0.0002,2]
[357291603,1743985843686,-2182.88676395,0.000199,2]
[357291604,1743985843697,-891.16691347,0.0002,2]
[357291614,1743985846201,-2540.45695579,0.0002,2]
[357291615,1743985846324,-191326.29870685,0.0002,2]
[357291616,1743985846370,-7186.43977357,0.0002,2]
[357291617,1743985846382,-425.6516355,0.0002,2]
[357291619,1743986035076,500.0,0.00032876,120]
[357291620,1743986035289,500.0,0.00032876,120]
[357291621,1743986121589,198.33,0.00024861,120]
[357291622,1743986507750,2000.0,0.00039446,30]
[357291623,1743986778069,150.0,0.00039446,120]
[357291624,1743986782762,359.92,0.00032932,120]
[357291626,1743986893467,5000.0,0.00039446,120]
[357291645,1743986972057,507.82,0.00013699,2]
[357291646,1743986972779,507.82,0.00013699,2]
[357291647,1743986972927,507.82,0.00013699,2]
[357291648,1743986973264,507.82,0.00013699,2]
[357291649,1743986973684,507.82,0.00013699,2]
[357291650,1743986974147,507.82,0.00013699,2]
[357291651,1743986975128,507.82,0.00013699,2]
[357291652,1743986975511,507.82,0.00013699,2]
[357291653,1743986975883,507.82,0.00013699,2]
[357291654,1743986976320,507.82,0.00013699,2]
[357291655,1743986976630,507.82,0.00013699,2]
[357291656,1743986976946,507.82,0.00013699,2]
[357291657,1743986977362,507.82,0.00013699,2]
[357291658,1743986977651,507.82,0.00013699,2]
[357291659,1743986978000,507.82,0.00013699,2]
[357291660,1743986978305,507.82,0.00013699,2]
[357291661,1743986979188,507.82,0.00013699,2]
[357291662,1743986979588,507.82,0.00013699,2]
[357291663,1743986980484,507.82,0.00013699,2]
[357291664,1743986980870,507.95819278,0.00013699,2]
[357291665,1743987020673,95909.08,0.00039446,30]
[357291668,1743987032396,-250.0,0.00019,2]
[357291669,1743987032406,-1500.0,0.000195,7]
[357291670,1743987032415,-3100.0,0.000196,7]
[357291671,1743987032425,-4700.0,0.000197,7]
[357291672,1743987032434,-6300.0,0.000198,7]
[357291673,1743987032443,-2376.0493922,0.00019899,2]
[357291674,1743987032453,-209.1676,0.000199,2]
[357291675,1743987032462,-196.90254308,0.000199,2]
[357291676,1743987032472,-154.66534086,0.000199,2]
[357291677,1743987032481,-866.8009,0.000199,2]
[357291678,1743987032491,-992.478,0.000199,2]
[357291679,1743987032501,-11319.21306971,0.000199,2]
[357291680,1743987032511,-612.73724918,0.000199,2]
[357291681,1743987032521,-7900.0,0.000199,7]
[357291682,1743987032530,-1424.691,0.000199,2]
[357291683,1743987032539,-224.1397,0.000199,2]
[357291684,1743987032549,-181.39198423,0.000199,2]
[357291685,1743987032559,-502.20816352,0.00019973,2]
[357291686,1743987032569,-500.0,0.00019973,2]
[357291687,1743987032579,-1068.40958,0.00019999,5]
[357291688,1743987032589,-1068.40958001,0.00019999,5]
[357291689,1743987032599,-671338.32215355,0.0002,2]
[357291690,1743987032611,-5012.71620559,0.0002,2]
[357291691,1743987032637,-2120.34484244,0.0002,2]
[357291692,1743987032649,-348.84849996,0.0002,2]
[357291856,1743987038261,-319.72455798,0.000199,2]
[357291857,1743987038417,-402.59327128,0.000199,2]
[357291905,1743987040644,-27117.17873339,0.000199,2]
[357291906,1743987040654,-191.24265279,0.000199,3]
[357291907,1743987040663,-478471.51819626,0.0002,2]
[357291908,1743987040748,-50732.7791015,0.0002,2]
[357291931,1743987043556,-303.10417879,0.0002,2]
[357291932,1743987043610,-27840.93746607,0.0002,2]
[357291933,1743987043622,-8570.89410801,0.0002,2]
[357291934,1743987043636,-7800.0,0.0002,2]
[357291948,1743987046678,-40537.39999961,0.0002,2]
[357291949,1743987046836,-4795.29400599,0.0002,2]
[357291973,1743987086108,158000.0,0.00039446,120]
[357291974,1743987308737,999.99999999,0.00039446,120]
[357291975,1743987330152,500.00000002,0.00039446,120]
[357291976,1743987504298,500.0,0.00039446,120]
[357291977,1743987807454,1038.77431665,0.00039472,120]
[357291978,1743987815183,1450.53781777,0.00039472,120]
[357291979,1743987879678,329.92,0.00032932,120]
[357291984,1743988150220,-198.33,0.00037291,120]
[357291989,1743988231452,-589.06,0.00019186,2]
[357291990,1743988231462,-250.0,0.00019343,2]
[357291991,1743988231472,-250.0,0.00019477,2]
[357291992,1743988231481,-400.0,0.000195,7]
[357291993,1743988231492,-297.17206569,0.000195,2]
[357291994,1743988231501,-279.84710824,0.000196,2]
[357291995,1743988231513,-590.61889176,0.000196,2]
[357291996,1743988231523,-176.57851011,0.000196,2]
[357291997,1743988231534,-800.0,0.000196,7]
[357291998,1743988231546,-1200.0,0.000197,7]
[357291999,1743988231555,-392.75603891,0.00019773,2]
[357292000,1743988231564,-1600.0,0.000198,7]
[357292001,1743988231575,-157.52203448,0.000199,2]
[357292002,1743988231584,-154.66534082,0.000199,2]